bitfinex/quotes_SOLUSD_20250718
["timestamp","ask_amount","ask_price","bid_price","bid_amount"]
[1752807413102,7.1591544,179.85,179.81,0.66]
[1752807413503,6.5791544,179.84,179.81,0.66]
[1752807414412,6.5791544,179.84,179.8,0.03]
[1752807414413,26.0,179.81,179.8,0.03]
[1752807414610,33.1591544,179.81,179.8,0.03]
[1752807419095,56.52299277,179.81,179.8,0.03]
[1752807419701,49.94383837,179.81,179.8,0.03]
[1752807419898,56.52299277,179.81,179.8,0.03]
[1752807420315,42.78468397,179.78,179.77,0.03]
[1752807420612,42.78468397,179.78,179.74,0.03]
[1752807420613,10.0,179.76,179.74,0.03]
[1752807420917,42.78468397,179.73,179.72,0.03]
[1752807421123,23.36383837,179.73,179.72,0.03]
[1752807421304,23.94383837,179.73,179.72,0.03]
[1752807422610,62.5591544,179.73,179.72,0.03]
[1752807428703,79.34383837,179.73,179.72,0.03]
[1752807429302,16.78468397,179.72,179.7,0.03]
[1752807429502,35.9591544,179.71,179.7,0.03]
[1752807429800,59.32299277,179.71,179.7,0.03]
[1752807430000,59.90299277,179.71,179.7,0.03]
[1752807431228,106.12352511,179.71,179.7,0.03]
[1752807431431,99.54437071,179.71,179.7,0.03]
[1752807432308,106.12352511,179.71,179.7,0.03]
[1752807432509,76.12352511,179.71,179.7,0.03]
[1752807432717,42.78468397,179.69,179.68,0.2]
[1752807432915,78.74383837,179.69,179.68,0.2]
[1752807433097,79.32383837,179.69,179.68,0.2]
[1752807435624,109.32383837,179.69,179.68,0.2]
[1752807437237,79.32383837,179.69,179.68,0.2]
[1752807439857,16.78468397,179.68,179.67,1e-08]
[1752807440031,53.94383837,179.68,179.67,1e-08]
[1752807442946,30.0,179.68,179.67,0.67000001]
[1752807443325,56.0,179.68,179.67,0.67000001]
[1752807443549,26.0,179.68,179.67,0.67000001]
[1752807443924,32.5791544,179.68,179.67,1e-08]
[1752807444131,61.9191544,179.68,179.67,1e-08]
[1752807445126,35.9191544,179.68,179.67,1e-08]
[1752807445353,49.17138898,179.68,179.67,1e-08]
[1752807445733,48.59138898,179.68,179.67,1e-08]
[1752807446555,78.59138898,179.68,179.67,1e-08]
[1752807447550,48.59138898,179.68,179.67,1e-08]
[1752807451235,48.59138898,179.68,179.67,0.68000001]
[1752807453153,48.59138898,179.68,179.67,1e-08]
[1752807453357,48.59138898,179.68,179.67,0.68000001]
[1752807453855,42.01223458,179.68,179.67,0.68000001]
[1752807454250,74.59138898,179.68,179.67,0.68000001]
[1752807454560,38.67223458,179.68,179.67,0.68000001]
[1752807455453,12.67223458,179.68,179.67,8.49490001]
[1752807455655,12.67223458,179.68,179.67,20.63981385]
[1752807455994,35.9591544,179.74,179.67,20.63981385]
[1752807456147,6.5791544,179.72,179.67,7.81490001]
[1752807456360,6.5791544,179.72,179.68,0.68]
[1752807457354,32.5791544,179.73,179.68,0.68]
[1752807457652,26.0,179.72,179.68,0.68]
[1752807457834,32.5791544,179.72,179.68,0.68]
[1752807458635,26.0,179.72,179.68,0.68]
[1752807459647,32.5791544,179.72,179.68,0.68]
[1752807460561,6.5791544,179.71,179.67,7.81490001]
[1752807460742,6.5791544,179.71,179.69,0.68]
[1752807461144,6.5791544,179.71,179.67,7.81490001]
[1752807461357,6.5791544,179.71,179.7,0.68]
[1752807461954,26.0,179.73,179.7,0.68]
[1752807462359,32.5791544,179.73,179.7,0.68]
[1752807462966,32.5791544,179.73,179.71,0.68]
[1752807464246,32.5791544,179.72,179.71,0.68]
[1752807464451,26.0,179.72,179.71,0.68]
[1752807470166,26.0,179.71,179.67,14.39405441]
[1752807470880,32.5791544,179.71,179.68,0.68]
[1752807471261,26.0,179.71,179.68,0.68]
[1752807472367,26.0,179.68,179.67,7.81490001]
[1752807472970,26.0,179.68,179.67,8.49490001]
[1752807473649,32.5791544,179.68,179.67,1e-08]
[1752807475573,61.8191544,179.68,179.67,1e-08]
[1752807477057,32.5791544,179.68,179.67,1e-08]
[1752807482688,29.82,179.69,179.67,1e-08]
[1752807482887,6.5791544,179.68,179.67,1e-08]
[1752807484072,7.1591544,179.68,179.67,1e-08]
[1752807485069,29.24,179.69,179.67,1e-08]
[1752807485391,6.5791544,179.68,179.67,1e-08]
[1752807491588,7.1591544,179.68,179.67,1e-08]
[1752807492001,6.5791544,179.68,179.67,1e-08]
[1752807494697,0.80707549,179.67,179.66,0.03]
[1752807494871,56.00707549,179.67,179.66,0.03]
[1752807495291,55.98707549,179.67,179.66,0.03]
[1752807495799,62.56622989,179.67,179.66,0.03]
[1752807497797,36.56622989,179.67,179.66,0.03]
[1752807498107,26.0,179.7,179.66,0.73]
[1752807498405,29.86,179.69,179.66,0.03]
[1752807498710,32.5791544,179.67,179.66,0.03]
[1752807499209,61.7591544,179.67,179.66,0.03]
[1752807500004,62.4391544,179.67,179.66,0.03]
[1752807500785,61.7591544,179.67,179.66,0.03]
[1752807500982,55.18,179.67,179.66,0.03]
[1752807501198,61.7591544,179.67,179.66,0.03]
[1752807501883,61.8191544,179.67,179.66,0.03]
[1752807505182,62.4991544,179.67,179.66,0.03]
[1752807507086,61.8191544,179.67,179.66,0.03]
[1752807507989,62.4991544,179.67,179.66,0.03]
[1752807511108,60.13966474,179.67,179.66,0.03]
[1752807513114,76.92434871,179.67,179.66,0.03]
[1752807513417,21.00434871,179.65,179.64,0.2]
[1752807513612,50.14434871,179.65,179.64,0.2]
[1752807513801,50.86434871,179.65,179.64,0.2]
[1752807514993,53.24201766,179.65,179.64,0.2]
[1752807516107,6.59733369,179.66,179.64,0.88]
[1752807516314,6.59733369,179.66,179.65,0.68]
[1752807516315,35.71733369,179.66,179.65,0.68]
[1752807516825,35.71733369,179.66,179.64,0.2]
[1752807517308,32.59733369,179.65,179.64,0.2]
[1752807517618,33.31733369,179.65,179.64,0.2]
[1752807518114,61.71733369,179.65,179.64,0.2]
[1752807519620,36.43733369,179.65,179.64,0.2]
[1752807520902,35.71733369,179.65,179.64,0.2]
[1752807521301,36.43733369,179.65,179.64,0.2]
[1752807526521,35.71733369,179.65,179.64,0.2]
[1752807526728,6.59733369,179.65,179.64,0.2]
[1752807527040,6.59733369,179.65,179.64,0.88]
[1752807527041,29.1,179.65,179.64,0.88]
[1752807527328,0.06,179.67,179.64,0.88]
[1752807527529,29.16,179.67,179.65,0.68]
[1752807527839,26.0,179.65,179.64,0.2]
[1752807528328,26.0,179.65,179.64,0.88]
[1752807529013,35.75733369,179.67,179.64,0.88]
[1752807529014,6.59733369,179.66,179.64,0.88]
[1752807529842,26.0,179.65,179.64,0.88]
[1752807535247,6.59733369,179.66,179.64,0.88]
[1752807538237,26.0,179.65,179.64,0.88]
[1752807540241,0.06,179.67,179.64,7.47733369]
[1752807540446,0.06,179.67,179.66,6.59733369]
[1752807540834,0.06,179.67,179.66,7.27733369]
[1752807541336,0.06,179.67,179.66,89.3280869]
[1752807541556,0.06,179.71,179.7,6.59733369]
[1752807542149,26.06,179.71,179.7,7.29733369]
[1752807542745,26.06,179.71,179.7,0.7]
[1752807547635,26.06,179.71,179.7,7.29733369]
[1752807548870,0.06,179.71,179.7,12.86216396]
[1752807549166,0.06,179.71,179.7,21.10976396]
[1752807549843,0.06,179.71,179.7,37.89444793]
[1752807551944,0.06,179.71,179.7,40.72017305]
[1752807555765,0.06,179.71,179.7,34.12283936]
[1752807555944,0.06,179.71,179.7,40.72017305]
[1752807557350,0.06,179.71,179.7,100.42017305]
[1752807560763,0.06,179.71,179.7,40.72017305]
[1752807562177,0.06,179.71,179.7,40.72017305]
[1752807562766,0.06,179.71,179.7,47.31750674]
[1752807562976,0.06,179.72,179.71,23.38201766]
[1752807563273,0.06,179.72,179.71,53.06201766]
[1752807563444,0.06,179.72,179.71,52.36201766]
[1752807563649,0.06,179.72,179.71,53.06201766]
[1752807564257,0.06,179.72,179.71,58.62653827]
[1752807566264,0.06,179.72,179.71,118.32653827]
[1752807571877,0.06,179.72,179.71,95.27733369]
[1752807572075,0.06,179.72,179.71,41.8418543]
[1752807573283,0.06,179.72,179.71,58.62653827]
[1752807578095,0.06,179.72,179.71,118.32653827]
[1752807589099,0.06,179.74,179.72,16.78468397]
[1752807589295,0.06,179.75,179.74,23.38201766]
[1752807589479,0.06,179.76,179.74,83.08201766]
[1752807589800,0.06,179.77,179.75,52.98201766]
[1752807590093,0.06,179.77,179.76,6.59733369]
[1752807590400,0.06,179.77,179.76,20.72440654]
[1752807591374,0.06,179.77,179.76,14.12707285]
[1752807591580,0.06,179.77,179.76,20.72440654]
[1752807592393,0.06,179.77,179.76,19.06850654]
[1752807592572,0.73,179.77,179.76,28.94499051]
[1752807592773,0.73,179.77,179.76,88.64499051]
[1752807594104,0.73,179.77,179.76,71.86030654]
[1752807595697,0.73,179.77,179.76,65.26297285]
[1752807595908,0.73,179.77,179.76,71.86030654]
[1752807596081,0.73,179.77,179.76,65.26297285]
[1752807596271,0.73,179.77,179.76,59.7]
[1752807598493,0.73,179.77,179.76,65.26297285]
[1752807598706,0.73,179.77,179.76,5.56297285]
[1752807598994,0.06,179.77,179.76,57.82499051]
[1752807599201,0.06,179.77,179.76,58.52499051]
[1752807600212,0.06,179.77,179.76,118.22499051]
[1752807600577,0.06,179.79,179.77,16.78468397]
[1752807600774,0.06,179.79,179.78,52.26201766]
[1752807600996,0.06,179.79,179.78,112.66201766]
[1752807601195,0.06,179.79,179.78,119.21901766]
[1752807601396,0.04,179.79,179.78,119.21901766]
[1752807601778,1e-08,179.79,179.78,119.21901766]
[1752807602298,0.06,179.8,179.79,16.78468397]
[1752807602299,1e-08,179.8,179.79,16.78468397]
[1752807602602,1e-08,179.8,179.79,30.69935135]
[1752807603598,0.06,179.82,179.79,95.96139595]
[1752807603796,0.06,179.82,179.81,23.38201766]
[1752807603989,0.06,179.82,179.81,83.08201766]
[1752807604184,0.1,179.85,179.81,77.76082656]
[1752807604397,0.1,179.85,179.84,23.38201766]
[1752807604701,0.1,179.85,179.84,52.24201766]
[1752807604901,0.1,179.85,179.84,52.96201766]
[1752807605707,1e-08,179.85,179.84,118.22251588]
[1752807605891,1e-08,179.85,179.84,119.76201588]
[1752807606141,1e-08,179.86,179.84,119.76201588]
[1752807606396,1e-08,179.86,179.85,24.10201766]
[1752807607787,0.06,179.87,179.85,29.6622067]
[1752807607983,0.06,179.87,179.86,29.58]
[1752807608391,0.06,179.87,179.86,28.86]
[1752807608600,0.06,179.87,179.86,36.17733369]
[1752807609397,0.06,179.87,179.86,52.24201766]
[1752807609903,0.73,179.87,179.86,6.59733369]
[1752807610116,0.73,179.87,179.86,40.99721359]
[1752807610296,0.73,179.87,179.86,35.43733369]
[1752807610698,0.73,179.87,179.86,6.59733369]
[1752807611105,0.73,179.87,179.85,103.54577305]
[1752807611295,0.73,179.87,179.85,28.84]
[1752807611715,0.73,179.87,179.84,34.4004496]
[1752807611907,0.73,179.87,179.83,6.59733369]
[1752807611908,0.73,179.87,179.83,28.94276075]
[1752807612111,0.73,179.87,179.83,57.78276075]
[1752807613816,0.73,179.87,179.84,6.59733369]
[1752807614001,0.73,179.87,179.84,12.15762405]
[1752807615093,0.06,179.87,179.84,12.15762405]
[1752807615293,0.67,179.86,179.84,12.15762405]
[1752807618903,0.67,179.86,179.84,5.56029036]
[1752807619217,0.67,179.85,179.84,12.15762405]
[1752807619413,0.67,179.85,179.84,5.56029036]
[1752807619606,0.67,179.85,179.84,12.15762405]
[1752807620392,0.67,179.85,179.84,5.56029036]
[1752807620718,0.67,179.85,179.83,43.73665666]
[1752807621017,0.67,179.85,179.83,5.56074169]
[1752807621221,0.67,179.85,179.83,34.38074169]
[1752807621414,0.67,179.85,179.83,5.56074169]
[1752807623321,7.26733369,179.85,179.82,59.7]
[1752807623513,0.67,179.84,179.82,59.7]
[1752807623713,0.67,179.83,179.82,65.26100985]
[1752807625402,0.67,179.83,179.81,5.56134062]
[1752807625729,0.67,179.82,179.8,100.67897806]
[1752807627634,0.67,179.82,179.8,34.38164437]
[1752807627824,0.67,179.81,179.79,94.09195789]
[1752807628031,0.67,179.8,179.79,65.29195789]
[1752807628675,0.67,179.8,179.79,59.73]
[1752807629535,7.26733369,179.8,179.79,0.03]
[1752807631835,0.67,179.8,179.79,0.03]
[1752807634034,7.26733369,179.8,179.79,0.03]
[1752807636323,0.67,179.8,179.79,0.03]
[1752807636625,33.26733369,179.8,179.79,0.03]
[1752807638123,26.67,179.8,179.79,0.03]
[1752807639431,33.26733369,179.8,179.79,0.03]
[1752807640718,26.67,179.8,179.79,0.03]
[1752807642031,6.59733369,179.84,179.79,7.30733369]
[1752807642335,7.28733369,179.85,179.8,12.83906895]
[1752807642731,0.69,179.84,179.81,0.68]
[1752807643028,0.75,179.86,179.82,6.59733369]
[1752807643435,0.69,179.85,179.81,7.27733369]
[1752807643615,0.69,179.85,179.8,5.56173526]
[1752807643616,0.69,179.85,179.8,12.15906895]
[1752807644016,6.59733369,179.81,179.79,0.03]
[1752807644211,6.59733369,179.8,179.79,0.03]
[1752807644439,7.28733369,179.8,179.79,0.03]
[1752807644739,0.69,179.8,179.79,0.03]
[1752807649115,26.0,179.84,179.79,0.03]
[1752807649116,6.59733369,179.82,179.79,0.03]
[1752807649314,7.28733369,179.82,179.79,0.03]
[1752807649516,0.69,179.81,179.79,0.03]
[1752807650641,0.69,179.8,179.79,0.03]
[1752807651619,0.69,179.82,179.79,0.03]
[1752807651819,0.69,179.81,179.79,0.03]
[1752807652226,7.28733369,179.81,179.79,0.03]
[1752807652725,6.59733369,179.81,179.79,0.03]
[1752807653045,0.69,179.8,179.79,0.03]
[1752807653624,7.28733369,179.82,179.79,0.03]
[1752807654032,7.28733369,179.81,179.79,0.03]
[1752807654434,0.69,179.8,179.79,0.03]
[1752807654629,6.59733369,179.83,179.79,0.03]
[1752807654834,7.28733369,179.83,179.79,6.27186483]
[1752807655037,0.69,179.82,179.79,0.03]
[1752807655448,0.69,179.81,179.79,0.03]
[1752807658128,6.59733369,179.81,179.79,0.03]
[1752807658328,0.69,179.8,179.79,0.03]
[1752807659037,0.69,179.81,179.79,0.03]
[1752807659354,6.59733369,179.82,179.79,0.03]
[1752807659656,0.69,179.8,179.79,0.03]
[1752807660746,1.0551,179.86,179.79,0.03]
[1752807660950,0.75,179.86,179.81,6.59733369]
[1752807661454,26.75,179.86,179.82,0.66]
[1752807661656,26.75,179.86,179.82,7.25733369]
[1752807661843,0.75,179.86,179.83,0.66]
[1752807662031,0.06,179.86,179.83,7.25733369]
[1752807662230,0.06,179.86,179.84,7.25733369]
[1752807662428,0.06,179.86,179.84,0.66]
[1752807662635,0.06,179.86,179.8,35.0268]
[1752807662854,0.68,179.85,179.81,40.91875963]
[1752807663054,0.68,179.85,179.82,0.66]
[1752807663362,0.68,179.85,179.81,12.81875963]
[1752807664034,0.68,179.85,179.81,12.15875963]
[1752807664244,0.74,179.86,179.82,0.66]
[1752807664644,0.74,179.86,179.83,5.56080742]
[1752807665040,0.74,179.86,179.82,6.22106633]
[1752807665248,0.68,179.85,179.82,5.56106633]
[1752807665446,6.65733369,179.86,179.82,5.56106633]
[1752807665447,0.68,179.84,179.82,5.56106633]
[1752807666193,0.68,179.84,179.81,5.56139881]
[1752807666368,6.59733369,179.83,179.79,59.73]
[1752807666669,7.27733369,179.82,179.79,0.03]
[1752807666872,0.68,179.82,179.79,0.03]
[1752807668165,0.68,179.81,179.79,5.59200364]
[1752807668868,0.68,179.81,179.79,0.03]
[1752807669047,6.59733369,179.82,179.79,0.03]
[1752807669248,0.68,179.8,179.79,0.03]
[1752807671363,33.27733369,179.82,179.79,0.03]
[1752807671672,0.68,179.81,179.79,0.03]
[1752807672867,7.27733369,179.8,179.79,0.03]
[1752807675758,33.27733369,179.8,179.79,0.03]
[1752807677447,7.27733369,179.8,179.79,0.03]
[1752807678982,0.68,179.8,179.79,0.03]
[1752807679170,7.27733369,179.8,179.79,0.03]
[1752807681989,6.59733369,179.8,179.79,0.69]
[1752807682480,6.59733369,179.8,179.79,0.03]
[1752807682979,0.06,179.86,179.79,0.69]
[1752807683162,6.65733369,179.86,179.8,6.59733369]
[1752807683374,6.65733369,179.86,179.83,6.59733369]
[1752807683375,0.06,179.86,179.83,6.59733369]
[1752807683556,0.06,179.86,179.85,6.59733369]
[1752807683865,0.06,179.86,179.85,7.25733369]
[1752807684177,0.06,179.86,179.85,12.81752273]
[1752807684389,0.06,179.86,179.85,29.6022067]
[1752807684953,0.06,179.86,179.85,23.00487301]
[1752807685159,0.06,179.86,179.85,29.6022067]
[1752807685767,0.06,179.86,179.85,23.00487301]
[1752807686054,0.06,179.86,179.85,29.6022067]
[1752807686669,1e-08,179.86,179.85,29.6022067]
[1752807687980,0.1,179.88,179.85,29.6022067]
[1752807687981,0.1,179.88,179.86,16.78468397]
[1752807688166,0.1,179.88,179.87,35.29733369]
[1752807688370,0.1,179.88,179.87,35.95733369]
[1752807688782,0.06,179.89,179.88,16.78468397]
[1752807688987,0.06,179.89,179.88,24.04201766]
[1752807689792,0.06,179.89,179.88,29.60127939]
[1752807690569,0.06,179.89,179.88,58.30127939]
[1752807690769,0.06,179.89,179.88,29.60127939]
[1752807690977,0.06,179.89,179.88,58.30127939]
[1752807691172,0.06,179.89,179.85,0.72]
[1752807691379,0.06,179.89,179.87,28.7]
[1752807691683,0.06,179.89,179.88,6.59733369]
[1752807691989,0.06,179.89,179.88,12.87659542]
[1752807692188,0.06,179.89,179.88,5.55926173]
[1752807692478,0.06,179.89,179.88,12.15659542]
[1752807692687,0.06,179.89,179.88,12.87659542]
[1752807693289,0.06,179.89,179.87,40.85683301]
[1752807693469,0.06,179.89,179.87,34.25949932]
[1752807694088,0.06,179.89,179.87,5.55949932]
[1752807694287,0.06,179.89,179.87,12.87683301]
[1752807695580,0.06,179.89,179.87,6.27949932]
[1752807697791,0.06,179.89,179.88,0.72]
[1752807698097,0.06,179.89,179.88,7.31733369]
[1752807699284,0.06,179.89,179.88,12.87659542]
[1752807703097,0.06,179.89,179.88,12.15659542]
[1752807703679,0.06,179.89,179.88,5.55926173]
[1752807704499,0.71,179.89,179.88,5.55926173]
[1752807704992,0.06,179.89,179.88,5.55926173]
[1752807705691,0.06,179.89,179.88,12.87659542]
[1752807706802,0.06,179.89,179.88,29.66127939]
[1752807706977,0.06,179.89,179.88,31.29597939]
[1752807708793,0.06,179.89,179.88,35.33738944]
[1752807710574,0.06,179.9,179.88,95.03738944]
[1752807710775,0.06,179.9,179.89,46.05754374]
[1752807711078,0.06,179.91,179.9,16.78468397]
[1752807711279,0.06,179.91,179.9,28.14342771]
[1752807711979,0.06,179.92,179.9,94.4407614]
[1752807712183,0.06,179.92,179.91,45.57707846]
[1752807714291,0.06,179.92,179.91,61.64176243]
[1752807714493,0.06,179.92,179.91,44.85707846]
[1752807714684,0.06,179.92,179.91,45.57707846]
[1752807720511,0.06,179.92,179.91,38.97974477]
[1752807720710,0.06,179.92,179.91,45.57707846]
[1752807721021,0.06,179.92,179.91,44.85707846]
[1752807721192,0.74,179.92,179.91,4.04141005]
[1752807721398,7.33733369,179.92,179.91,4.04141005]
[1752807721590,7.33733369,179.92,179.88,5.58903031]
[1752807721787,0.68,179.91,179.89,4.07558467]
[1752807722106,0.06,179.92,179.9,11.33291836]
[1752807722318,0.06,179.92,179.91,4.07558467]
[1752807722604,0.74,179.92,179.91,4.07558467]
[1752807722811,0.74,179.92,179.91,9.63391939]
[1752807723199,0.74,179.92,179.91,4.07558467]
[1752807723890,0.74,179.92,179.91,9.63391939]
[1752807724514,0.06,179.92,179.91,9.63391939]
[1752807724695,0.06,179.92,179.91,33.67593705]
[1752807725405,0.06,179.93,179.92,23.02608397]
[1752807725608,0.06,179.93,179.92,62.99900233]
[1752807726302,0.06,179.94,179.92,62.99900233]
[1752807726616,0.06,179.94,179.93,28.11760233]
[1752807726786,0.06,179.94,179.93,33.67531921]
[1752807726992,0.06,179.96,179.94,16.78468397]
[1752807727209,0.06,179.96,179.95,49.50026864]
[1752807727410,0.06,179.96,179.95,56.75760233]
[1752807727816,0.06,179.96,179.95,39.97291836]
[1752807727994,0.06,179.96,179.95,56.76587785]
[1752807728191,0.06,179.96,179.95,49.50854416]
[1752807728410,0.06,179.96,179.95,56.10587785]
[1752807729197,0.06,179.96,179.95,61.66297704]
[1752807729600,0.06,179.96,179.95,62.32297704]
[1752807731911,0.06,179.96,179.95,122.02297704]
[1752807734204,0.06,179.96,179.95,121.36297704]
[1752807734400,0.06,179.96,179.95,69.34095938]
[1752807734609,0.06,179.96,179.95,76.59829307]
[1752807734798,0.06,179.96,179.95,76.59811823]
[1752807735001,0.06,179.96,179.95,93.3828022]
[1752807735806,1e-08,179.96,179.95,93.3828022]
[1752807739433,1e-08,179.96,179.95,122.0028022]
[1752807743422,1e-08,179.96,179.95,121.3428022]
[1752807743733,1e-08,179.96,179.95,121.33908984]
[1752807743932,1e-08,179.96,179.95,121.99908984]
[1752807744114,0.68000001,179.96,179.95,97.95707218]
[1752807744320,0.68000001,179.96,179.95,75.93440587]
[1752807745219,1e-08,179.96,179.95,75.93440587]
[1752807747030,1e-08,179.96,179.95,76.59440587]
[1752807747420,1e-08,179.96,179.95,93.37908984]
[1752807751619,1e-08,179.97,179.96,22.34147436]
[1752807751815,1e-08,179.97,179.96,62.28878104]
[1752807752032,1e-08,179.97,179.96,61.61878104]
[1752807752314,1e-08,179.97,179.96,62.28878104]
[1752807754723,1e-08,179.97,179.96,61.61878104]
[1752807755520,1e-08,179.97,179.96,121.31878104]
[1752807758219,1e-08,179.97,179.96,115.39144735]
[1752807758437,1e-08,179.97,179.96,121.98878104]
[1752807759643,1e-08,179.97,179.96,121.31878104]
[1752807760422,1e-08,179.97,179.96,121.98878104]
[1752807760946,1e-08,179.97,179.96,122.00014333]
[1752807765749,1e-08,179.97,179.96,115.40280964]
[1752807765951,1e-08,179.97,179.96,122.00014333]
[1752807768631,0.78,180.0,179.96,135.89211932]
[1752807768856,0.78,180.0,179.98,6.59733369]
[1752807769060,0.78,180.0,179.99,4.09133528]
[1752807769439,0.06,180.0,179.99,10.68866897]
[1752807769759,0.06,180.0,179.99,16.24453318]
[1752807770149,0.06,180.0,179.99,33.02921715]
[1752807770454,0.06,180.0,179.99,33.69921715]
[1752807773360,0.06,180.0,179.99,93.39921715]
[1752807774048,0.06,180.04,180.0,16.78468397]
[1752807774363,0.72,180.07,180.04,16.78468397]
[1752807774564,3.73000876,180.16,180.01,32.67133528]
[1752807774565,0.72,180.06,180.05,4.09133528]
[1752807774856,0.72,180.06,180.05,10.68866897]
[1752807775059,0.72,180.08,180.05,39.91866897]
[1752807775268,0.72,180.1,180.07,6.59733369]
[1752807775438,0.9951,180.16,180.08,4.09133528]
[1752807775644,0.72,180.09,180.08,5.55308751]
[1752807775857,0.72,180.09,180.08,9.6421132]
[1752807776568,0.72,180.12,180.09,16.78468397]
[1752807776737,9.54697948,180.19,180.11,6.59733369]
[1752807776946,0.72,180.18,180.15,6.59733369]
[1752807777240,0.72,180.18,180.12,32.64902569]
[1752807777241,0.72,180.18,180.14,28.56]
[1752807777446,0.72,180.18,180.15,4.07881676]
[1752807777644,25.5,180.16,180.14,35.15733369]
[1752807777862,0.9951,180.22,180.15,9.62857241]
[1752807778065,6.59733369,180.2,180.16,4.07764263]
[1752807778255,0.9951,180.22,180.16,16.78468397]
[1752807778454,7.59243369,180.22,180.17,10.67051716]
[1752807778654,0.72,180.21,180.18,4.07318347]
[1752807778846,6.59733369,180.2,180.15,5.55092978]
[1752807779160,7.31733369,180.19,180.16,4.07278374]
[1752807779366,0.72,180.18,180.15,5.55092978]
[1752807779569,0.72,180.18,180.16,4.07024981]
[1752807779744,26.72,180.18,180.17,4.06982432]
[1752807780255,0.72,180.18,180.1,28.56]
[1752807780451,26.0,180.16,180.13,6.59733369]
[1752807780761,0.72,180.15,180.14,4.0660605]
[1752807781164,7.31733369,180.15,180.14,4.0660605]
[1752807781462,0.72,180.15,180.14,4.0660605]
[1752807781668,7.31733369,180.15,180.14,4.0589108]
[1752807782155,7.31733369,180.15,180.09,5.55277916]
[1752807782460,1.6951,180.14,180.1,4.05885621]
[1752807782665,26.0,180.1,180.01,0.71]
[1752807782964,26.0,180.1,180.0,28.56]
[1752807783164,0.66,180.09,180.0,28.56]
[1752807783349,0.9951,180.14,180.01,0.71]
[1752807783667,26.0,180.09,180.06,6.59733369]
[1752807783843,26.0,180.09,180.05,22.33869674]
[1752807784152,26.0,180.13,180.05,0.71]
[1752807784352,6.59733369,180.1,180.05,0.71]
[1752807784861,7.25733369,180.1,180.05,0.71]
[1752807785569,6.59733369,180.1,180.05,0.71]
[1752807785747,0.66,180.09,180.04,54.59739583]
[1752807785948,0.66,180.09,180.04,55.30739583]
[1752807786299,7.25733369,180.09,180.04,26.74739583]
[1752807786944,7.25733369,180.09,180.04,20.15006214]
[1752807787144,7.25733369,180.09,180.04,26.74739583]
[1752807787443,7.25733369,180.09,180.04,26.03739583]
[1752807787642,7.25733369,180.09,180.05,0.71]
[1752807787839,6.59733369,180.09,180.04,26.03739583]
[1752807788048,0.66,180.08,180.04,26.03739583]
[1752807788242,0.66,180.08,180.04,19.44006214]
[1752807788439,7.25733369,180.07,180.04,5.55425899]
[1752807788640,0.66,180.06,180.04,5.55425899]
[1752807788965,7.25733369,180.05,180.02,5.55493834]
[1752807789666,7.25733369,180.04,180.01,5.55524693]
[1752807790167,6.59733369,180.04,180.01,5.55524693]
[1752807790468,7.25733369,180.04,180.01,5.55524693]
[1752807790657,6.59733369,180.05,180.01,5.55524693]
[1752807790857,6.59733369,180.05,180.01,6.26524693]
[1752807791765,7.25733369,180.04,180.0,5.55547092]
[1752807792064,6.59733369,180.02,180.0,5.55547092]
[1752807792265,6.59733369,180.02,179.96,67.3827]
[1752807792266,0.66,180.01,179.96,5.58667286]
[1752807792454,7.25733369,180.01,179.96,6.29667286]
[1752807792655,28.54,180.05,179.97,0.71]